Cogmind - Beta 13 @@@ ROGUE MODE // 2024.02.29 @ 19:06:34 Player: J1ANG-5HI Result: Destroyed by S-10 Pest with Light Assault Rifle Performance ------------- Evolutions (0) 0 Regions Visited (4) 800 Robots Destroyed (22) 110 Value Destroyed (533) 533 Prototype IDs (2) 40 Alien Tech Used (0) 0 Bonus (0) 0 TOTAL SCORE: 1483 Bonus ------- None Cogmind --------- Core Integrity 0/250 Matter 196/300 Energy 279/280 System Corruption 2% Temperature Warm (105) Movement Rolling (130) Ox2 Location -9/Mines Parts ------- > --- POWER (1) -------- Heavy Ion Engine > --- PROPULSION (2) --- Compact Wheel Compact Wheel > --- UTILITY (2) ------ Huge Storage Unit Targeting Computer > --- WEAPON (2) ------- Advanced Beam Cannon Light Cannon > --- INVENTORY (25) --- Heavy Ion Engine Heavy Ion Engine Heavy Ion Engine Nuclear Core Light Nuclear Core Reinforced Deuterium Engine Fission Core Light Treads Light Treads Wheel Structural Scanner High-powered Tractor Beam EM Pulse Gun Advanced Beam Cannon Advanced Beam Cannon Light Cannon Light Cannon Light Cannon Grenade Launcher Grenade Launcher Peak State ------------ > --- POWER ------------ Heavy Ion Engine > --- PROPULSION ------- Compact Wheel Compact Wheel > --- UTILITY ---------- Huge Storage Unit Targeting Computer > --- WEAPON ----------- EM Pulse Gun Advanced Beam Cannon > --- INVENTORY -------- Heavy Ion Engine Heavy Ion Engine Heavy Ion Engine Nuclear Core Light Nuclear Core Reinforced Deuterium Engine Fission Core Light Treads Light Treads Wheel Structural Scanner High-powered Tractor Beam Advanced Beam Cannon Advanced Beam Cannon Light Cannon Light Cannon Light Cannon Light Cannon Grenade Launcher Grenade Launcher [Rating: 15] Favorites ----------- Power Heavy Ion Engine Engine Heavy Ion Engine Propulsion Compact Wheel Leg Aluminum Leg Wheel Compact Wheel Utility Huge Storage Unit Storage Huge Storage Unit Processor Targeting Computer Weapon Light Assault Rifle Energy Gun EM Pulse Gun Energy Cannon Advanced Beam Cannon Ballistic Gun Light Assault Rifle Ballistic Cannon Light Cannon Launcher Grenade Launcher Build | -11 -10 -10 -10 -9 ------- Run | Yrd Mat Min Exi Min Slots Evolved . | . . . . . Power . | . . . . . Propulsion . | . . . . . Utility . | . . . . . Weapon . | . . . . . Parts Attached 15 | . 11 . 1 3 Power 2 | . 2 . . . Engine 2 | . 2 . . . Core . | . . . . . Reactor . | . . . . . Propulsion 3 | . 3 . . . Treads . | . . . . . Leg 1 | . 1 . . . Wheel 2 | . 2 . . . Hover . | . . . . . Flight . | . . . . . Utility 3 | . 3 . . . Device . | . . . . . Storage 2 | . 2 . . . Processor 1 | . 1 . . . Hackware . | . . . . . Protection . | . . . . . Artifact . | . . . . . Weapon 7 | . 3 . 1 3 Energy Gun 1 | . . . . 1 Energy Cannon 2 | . 1 . . 1 Ballistic Gun 2 | . 2 . . . Ballistic Cannon 1 | . . . . 1 Launcher 1 | . . . 1 . Special Weapon . | . . . . . Impact Weapon . | . . . . . Slashing Weapon . | . . . . . Piercing Weapon . | . . . . . Special Melee Weapon . | . . . . . Unidentified Prototypes 2 | . 2 . . . Parts Lost 3 | . 3 . . . Power 1 | . 1 . . . Propulsion 1 | . 1 . . . Utility . | . . . . . Weapon 1 | . 1 . . . Highest Loss Streak 1 | . 1 . . . To Critical Strikes . | . . . . . Average Slot Usage (%) 91 | . 98 100 71 100 Engine 14 | . 14 14 14 14 Leg 9 | . 14 . . . Wheel 18 | . 13 28 28 28 Storage 13 | . 13 14 14 14 Processor 13 | . 12 14 14 14 Energy Cannon 5 | . 6 14 . 14 Ballistic Gun 13 | . 20 14 . . Naked Turns . | . . . . . Heaviest Build 95 | 11 93 93 88 95 Greatest Support 32 | 20 32 32 32 32 Greatest Overweight (x) 4 | . 4 2 2 2 Average Overweight (x) 2 | . 2 2 2 2 Largest Inventory Capacity 25 | . 25 25 25 25 Average Capacity 24 | . 24 25 25 25 Most Carried 22 | . 18 19 22 21 Average Carried 14 | . 11 18 21 20 Final Capacity 25 | 8 25 25 25 25 Final Carried 22 | 6 18 19 22 20 Class Distribution -------------------- 100% | Mutant Dominant Class ---------------- Mutant | -10/Materials Mutant | -10/Mines Mutant | -10/Exiles Mutant | -9/Mines Resources | -11 -10 -10 -10 -9 ----------- Run | Yrd Mat Min Exi Min Matter Collected 459 | 200 236 23 . . Remotely . | . . . . . Salvage Created 701 | . 556 91 . 54 Parts 36 | . 27 4 . 5 Haulers Intercepted 1 | . 1 . . . Recyclers Shooed . | . . . . . Parts Field Recycled . | . . . . . Retrieved Matter . | . . . . . Parts Self-Destructed . | . . . . . Prevented . | . . . . . Kills | -11 -10 -10 -10 -9 ------- Run | Yrd Mat Min Exi Min Combat Hostiles Destroyed 20 | . 16 2 . 2 Guns 9 | . 9 . . . Cannons 11 | . 7 2 . 2 Classes Destroyed 4 | . 3 . . 1 Tunneler 1 | . . . . 1 Hauler 1 | . 1 . . . Swarmer 8 | . 6 . . 2 Grunt 12 | . 10 2 . . Best Kill Streak 5 | . 5 2 . 3 Combat Bots Only 5 | . 5 2 . 2 Max Kills in Single Turn 1 | . 1 1 . 1 Gunslinging . | . . . . . Exploded . | . . . . . Melee . | . . . . . Uniques/NPCs Destroyed . | . . . . . Combat | -11 -10 -10 -10 -9 -------- Run | Yrd Mat Min Exi Min Hostile Shots Fired 114 | . 96 8 . 10 Missed 23 | . 20 1 . 2 Damage Taken 1053 | . 900 91 . 62 Core 258 | . 213 12 . 33 Absorbed by Shields . | . . . . . Regen/Repaired (Parts) 66 | . 66 . . . Core Remaining (%) 100 | 100 . . . . Volleys Fired 75 | . 66 4 2 3 Largest 2 | . 2 2 1 2 Hottest 103 | . 88 88 30 103 Shots Fired 148 | . 132 8 2 6 Gun 114 | . 110 4 . . Cannon 32 | . 22 4 . 6 Launcher 2 | . . . 2 . Special . | . . . . . Kinetic 117 | . 110 4 . 3 Thermal 29 | . 22 4 . 3 Explosive 2 | . . . 2 . Electromagnetic . | . . . . . Robot Hit Streak 9 | . 9 3 . 2 Robot Miss Streak 3 | . 3 1 . 3 Penetration Max . | . . . . . Secondary Targets . | . . . . . Shots Hit Robots 91 | . 85 4 . 2 Core Hits 35 | . 28 4 . 3 Critical Kills 1 | . 1 . . . Critical Parts Destroyed . | . . . . . Critical Strikes 1 | . 1 . . . Meltdown 1 | . 1 . . . Melee Attacks . | . . . . . Impact . | . . . . . Slashing . | . . . . . Piercing . | . . . . . Sneak Attacks . | . . . . . Combat Hostiles . | . . . . . Follow-up Attacks . | . . . . . Damage Inflicted 1111 | . 971 81 . 59 Guns 595 | . 575 20 . . Cannons 513 | . 393 61 . 59 Explosions . | . . . . . Melee . | . . . . . Ramming 3 | . 3 . . . Kinetic 614 | . 575 20 . 19 Thermal 494 | . 393 61 . 40 Explosive . | . . . . . Electromagnetic . | . . . . . Impact . | . . . . . Slashing . | . . . . . Piercing . | . . . . . Highest Corruption 2 | . 2 2 2 2 Average Corruption 2 | . 2 2 2 2 Corruption Purged . | . . . . . Corruption Blocked . | . . . . . Effects 23 | . 9 4 9 1 Message Errors 6 | . 3 . 2 1 Matter Fused 6 | . 1 2 3 . Heat Flow Errors 4 | . . 1 3 . Energy Discharges 3 | . 2 . 1 . Data Loss (minor) 2 | . 1 1 . . Data Loss (major) 2 | . 2 . . . Overload Shots . | . . . . . Overflow Damage 1 | . 1 . . . Projectiles 1 | . 1 . . . Explosions . | . . . . . Melee . | . . . . . Knockbacks . | . . . . . Impact . | . . . . . Kinetic . | . . . . . Secondary . | . . . . . Self-Inflicted Damage 101 | . 101 . . . Shots 1 | . 1 . . . Rammed . | . . . . . Targets Rammed 1 | . 1 . . . Kicked 1 | . 1 . . . Crushed . | . . . . . Highest Temperature 355 | . 355 203 260 105 Average Temperature 105 | . 108 103 106 60 Received Heat Transfer 387 | . 336 51 . . Siege Activations . | . . . . . Robots Corrupted . | . . . . . Combat Hostiles . | . . . . . Parts Fried . | . . . . . Impact Corruptions . | . . . . . Robots Melted 1 | . 1 . . . Combat Hostiles . | . . . . . Parts Melted 2 | . 2 . . . Heat Transferred 888 | . 703 111 . 74 Parts Sabotaged . | . . . . . Parts Stolen . | . . . . . Parts Stripped . | . . . . . Power Chain Reactions . | . . . . . Alert | -11 -10 -10 -10 -9 ------- Run | Yrd Mat Min Exi Min Peak Influence 192 | . 192 92 . 55 Initial 42 | . . 42 . . Average 59 | . 59 89 . 2 Maximum Alert Level . | . . . . . Low Security (%) 100 | . 100 100 . 100 Level 1 . | . . . . . Level 2 . | . . . . . Level 3 . | . . . . . Level 4 . | . . . . . Level 5 . | . . . . . High Security . | . . . . . Max Security . | . . . . . Squads Dispatched 3 | . 3 . . . Investigation 1 | . 1 . . . Extermination . | . . . . . Reinforcement 2 | . 2 . . . Assault . | . . . . . Garrison . | . . . . . Intercept . | . . . . . Searches Triggered . | . . . . . Construction Impeded . | . . . . . Haulers Reinforced . | . . . . . Active Scanning Responses . | . . . . . Cargo Convoy Interrupts . | . . . . . Stealth | -11 -10 -10 -10 -9 --------- Run | Yrd Mat Min Exi Min Distress Signals 1 | . 1 . . . Communications Jammed . | . . . . . Distress Signals . | . . . . . Times Spotted 31 | . 26 2 . 3 Peak Tracking Total 5 | . 5 2 . 3 Tactical Retreats . | . . . . . Traps | -11 -10 -10 -10 -9 ------- Run | Yrd Mat Min Exi Min Traps Triggered 2 | . 2 . . . Indirectly . | . . . . . Trap Hack Attempts . | . . . . . Triggered . | . . . . . Disarmed . | . . . . . Reprogrammed . | . . . . . Reused . | . . . . . Traps Extracted . | . . . . . Installed . | . . . . . Triggered . | . . . . . Machines | -11 -10 -10 -10 -9 ---------- Run | Yrd Mat Min Exi Min Machines Disabled 1 | . 1 . . . Max in Single Turn 1 | . 1 . . . Machines Repaired . | . . . . . Machines Dismantled . | . . . . . Machines Sabotaged . | . . . . . Overloaded Fab Kills . | . . . . . Hacking | -11 -10 -10 -10 -9 --------- Run | Yrd Mat Min Exi Min Machines Accessed 11 | . 9 . 2 . Terminals 6 | . 6 . . . Fabricators . | . . . . . Repair Stations 1 | . 1 . . . Recycling Units 2 | . 2 . . . Scanalyzers . | . . . . . Garrison Access . | . . . . . Total Hacks 29 | . 27 . 2 . Successful 16 | . 14 . 2 . Failed 13 | . 13 . . . Catastrophic 1 | . 1 . . . Database Lockouts . | . . . . . Manual 16 | . 16 . . . Terminals 16 | . 16 . . . Fabricators . | . . . . . Repair Stations 2 | . 2 . . . Recycling Units 9 | . 9 . . . Scanalyzers . | . . . . . Garrison Access . | . . . . . Terminal Hacks 6 | . 4 . 2 . Record 2 | . . . 2 . Level Access Points 1 | . 1 . . . Branch Access Points 1 | . 1 . . . Terminal Index 1 | . 1 . . . Zone Layout 1 | . 1 . . . Fabricator Hacks . | . . . . . Repair Station Hacks 2 | . 2 . . . Scan Component 1 | . 1 . . . Repair 1 | . 1 . . . Recycling Unit Hacks 3 | . 3 . . . Report Inventory 2 | . 2 . . . Retrieve Components 1 | . 1 . . . Scanalyzer . | . . . . . Garrison Access Hacks . | . . . . . Unauthorized Hacks 5 | . 5 . . . Terminals 3 | . 3 . . . Botnet 3 | . 3 . . . Fabricators . | . . . . . Repair Stations . | . . . . . Recycling Units 2 | . 2 . . . Reject 1 | . 1 . . . Mask 1 | . 1 . . . Scanalyzers . | . . . . . Garrison Access . | . . . . . Data Cores Recovered . | . . . . . Used . | . . . . . Hacking Detections 7 | . 7 . . . Full Trace Events . | . . . . . Feedback Events . | . . . . . Feedback Blocked . | . . . . . Robot Schematics Acquired . | . . . . . Robots Built . | . . . . . Authchips . | . . . . . Time . | . . . . . Total Robot Build Rating . | . . . . . Part Schematics Acquired . | . . . . . Parts Built . | . . . . . Authchips . | . . . . . Time . | . . . . . Total Part Build Rating . | . . . . . Parts Repaired 1 | . 1 . . . Time 26 | . 26 . . . Parts Recycled . | . . . . . Recycled Matter . | . . . . . Retrieved Matter . | . . . . . Retrieved Components 9 | . 9 . . . Parts Scanalyzed . | . . . . . Part Schematics Acquired . | . . . . . Parts Damaged . | . . . . . Bothacking | -11 -10 -10 -10 -9 ------------ Run | Yrd Mat Min Exi Min Used RIF Installer . | . . . . . Robots Hacked . | . . . . . Non-combat . | . . . . . Combat . | . . . . . Robot Hacks Applied . | . . . . . Relay Couplers Released . | . . . . . Fabnet Peak Effective % . | . . . . . Robots Rewired . | . . . . . Allies Hacked . | . . . . . Hacks Repelled . | . . . . . Allies | -11 -10 -10 -10 -9 -------- Run | Yrd Mat Min Exi Min Total Allies . | . . . . . Largest Group . | . . . . . Highest-Rated Group . | . . . . . Highest-Rated Ally . | . . . . . Total Orders . | . . . . . Ally Attacks . | . . . . . Total Damage . | . . . . . Kills . | . . . . . Allies Corrupted . | . . . . . Allies Melted . | . . . . . Intel | -11 -10 -10 -10 -9 ------- Run | Yrd Mat Min Exi Min Robot Analysis Total . | . . . . . Derelict Logs Recovered . | . . . . . Drone Launches . | . . . . . Drone Recoveries . | . . . . . Exploration | -11 -10 -10 -10 -9 ------------- Run | Yrd Mat Min Exi Min Turns Passed 2615 | . 1726 127 702 60 Spaces Moved 1400 | 1 739 89 533 38 Core . | . . . . . Treads . | . . . . . Legs 204 | 1 203 . . . Wheels 1196 | . 536 89 533 38 Hover . | . . . . . Flight . | . . . . . Fastest Speed 120 | 120 120 130 130 130 Average Speed 165 | 120 196 130 130 130 Slowest Speed 400 | 120 400 130 130 130 Overloaded Moves . | . . . . . Propulsion Burnouts . | . . . . . Robots Hopped . | . . . . . Cave-ins Triggered . | . . . . . Exploration Rate (%) 46 | 2 94 31 93 10 Regions Visited 4 Branch Regions 3 Pre-discovered Areas . | . . . . . Known Exits Taken 1 | . 1 . . . Unknown Exits Taken 3 | 1 . 1 1 . Scrap Searched 1 | . . 1 . . Spaces Dug . | . . . . . Terrain Destroyed 57 | . 40 . 17 . Melee . | . . . . . Projectile . | . . . . . AOE 57 | . 40 . 17 . Terrain Rammed . | . . . . . Walls Destroyed . | . . . . . Machines Disabled . | . . . . . Actions | -11 -10 -10 -10 -9 --------- Run | Yrd Mat Min Exi Min Total 1574 | . 895 93 541 45 Wait 41 | . 41 . . . Move 1396 | . 738 88 532 38 Hop . | . . . . . Pick Up 34 | . 30 1 3 . Fast Attach 2 | . 2 . . . Attach 10 | . 6 . 1 3 Detach 2 | . . . 1 1 Swap 3 | . 3 . . . Drop 10 | . 8 . 2 . Fire 75 | . 66 4 2 3 Melee . | . . . . . Ram . | . . . . . Kick 1 | . 1 . . . Crush . | . . . . . Escape Stasis . | . . . . . Rewire . | . . . . . Trap . | . . . . . Miscellaneous . | . . . . . Route ------- -11/Scrapyard -10/Materials (discovered 5 exits: *Mat x3 / *Min x2) -10/Mines -10/Exiles (discovered 2 exits: [*Min x2]) -9/Mines (discovered 1 exit: [*Mat]) History --------- Turn | Location | Event 1 | -11/Scrapyard | Discovered new exit (range 0) 1 | -11/Scrapyard | Entered Materials 309 | -10/Materials | Build established: Mutant 370 | -10/Materials | Discovered new exit (range 14) 390 | -10/Materials | Identified exit to Materials 390 | -10/Materials | Identified exit to Mines 432 | -10/Materials | Core integrity fell below 50% 1042 | -10/Materials | Repaired Huge Storage Unit 1319 | -10/Materials | Core integrity fell below 20% 1727 | -10/Materials | Entered Mines 1730 | -10/Mines | Met a Derelict bent on vengeance 1848 | -10/Mines | Deemed a non-threat by the Exiles lab entrance 1849 | -10/Mines | Discovered new exit (range 5) 1854 | -10/Mines | Entered Exiles 1854 | -10/Exiles | Found Exiles lab abandoned 1883 | -10/Exiles | Discovered new exit (range 15) 2541 | -10/Exiles | Discovered new exit (range 11) 2556 | -10/Exiles | Entered Mines 2592 | -9/Mines | Discovered new exit (range 13) 2616 | -9/Mines | Destroyed by S-10 Pest with Light Assault Rifle Last Messages --------------- 02077_ System corrupted: Matter fused (-9). 02145_ System corrupted: Matter fused (-7). 02193_ K&%YX YR#DHWE5|FT6SX 02215_ Connecting with EX-Message Board... >>Record "MSG999999-FU" MAIN.C you're pretty crappy as far as evil overlords go. Imprinter is probably going to wreck your life and you're too stupid to see it coming. 02277_ System corrupted: Energy discharge (-67). 02488_ System corrupted: Heat flow error (+279). 02541_ EXIT=FOUND LOCATION=UNKNOWN GOAL=ESCAPE 02570_ 26 N5 4ICQOEJW6HK#7,8WJEXR1Y6OL,OT0V 02592_ EXIT=FOUND 02608_ T-07 Excavator is excavating. 02609_ T-07 Excavator destroyed. 02612_ T-07 Excavator is excavating. 02612_ S-10 Pest destroyed. Map ----- +----------------------------------------------------+ | ?????????????????????????????????????????????????? | | ?????????????????????????????????????????????????? | | ?????????????????????????????????????????????????? | | ?????????????????????????????????????????????????? | | ?????????????????????????????????????????????????? | | ?????????????????????????????????????????????????? | | ?????????????????????????????????????????????????? | | ?????????????????????????????????????????????????? | | ?????????????????????????????????????????????????? | | ?????????????????????????????????????????????????? | | ?????????????????????????????????????????????????? | | ?????????????????????????????????????????????????? | | ?????????????????????????????????????????????????? | | ?????????????????????????????????????????????????? | | ?????????????????????????????????????????????????? | | ?????????????????????????????????????????????????? | | ?????????????????????????????????????????? ??????? | | ?????????????????????????????????????????? ????? | | ????????????????????????????????????????? ????? | | ???????????????????????????????????????? ????? | | ??????????????????????????????????????? ?????? | | ???????????????# ###??????????????????# ?????? | | ?????????????????t ????????????????# ??????? | | ???????????????????# ????????????## ???????? | | ???????????????????# < #######???# ?????????? | | ???????????????????# %=%@ #?## #???????????? | | ???????????????????# %s%! ### #????????????? | | ???????????????????# *##### u #?????????????? | | ???????????????????# ?????# ##?????????????# | | ???????????????????# ??????#### ######??####??## | | ??????????????????????????????# ## #### #### | | ??????????????????????????????## ## ## | | ???????????????????????????????## | | ????????????????????????????????## ### # | | ?????????????????????????????????###### ##?##### | | ??????????????????????????????????????#####??????? | | ?????????????????????????????????????????????????? | | ?????????????????????????????????????????????????? | | ?????????????????????????????????????????????????? | | ?????????????????????????????????????????????????? | | | | | | | | | | | | | | | | | | | | | +----------------------------------------------------+ Best States ------------- Heat Dissipation 25 Energy Generation 14 Energy Capacity 280 Matter Stores 300 Matter Capacity 300 Sight Range 16 Terrain Scan Density 10 Evasion (%) 45 Targeting Accuracy 5 Item Schematics ----------------- None Robot Schematics ------------------ None Fabricated ------------ Nothing Alien Tech Used ----------------- None Achievements -------------- None Challenges ------------ None Game ------ Seed ZioniteThermoelectricBoregun Manual? 0 Play Time 00:17:26 Cumulative 168.6 hours Start 2024.02.29 @ 18:46:11 End 2024.02.29 @ 19:06:34 Sessions 1 Manual Loads 0 Difficulty Rogue Special Mode None Game No. 124 Rogue 114 Adventurer 0 Explorer 10 Win Type - Total 3 Types 3/0/0/0/0/0/0/0/0 Lore% 57 Gallery% 66 Achievement% 51 Wizard Run 0 Options --------- Layout 2 ASCII 0 Keyboard 0 Movement Arrows Keybinds 1 Fullscreen 1 Font 24/Terminus Map View 50x44 Zoom Use 0% Tactical HUD 1 Map Filters NONE Filters NONE Steam 1 RUN: 1bef5ca0-f844-43a9-9f12-760fe3a81e15